[Event "EWIBCC 2019"]
[Site "Monte-Carlo"]
[Date "2019.11.29"]
[Round "10.13"]
[White "Berend, Elvira"]
[Black "Guichard, Pauline"]
[Result "1/2-1/2"]
[ECO "E05"]
[WhiteElo "2349"]
[BlackElo "2407"]
[Annotator "NA"]
[PlyCount "74"]
[EventDate "2019.11.29"]
[EventType "swiss"]
[EventCountry "MNC"]
[SourceTitle "playchess.com"]
[Source "ChessBase"]
[SourceQuality "1"]
[TimeControl "180+2"]

1. d4 {[%emt 0:00:00]} Nf6 {[%emt 0:00:00]} 2. c4 {[%emt 0:00:00]} e6 {[%emt 0:00:00]} 3. Nf3 {[%emt 0:00:02]} d5 {[%emt 0:00:02]} 4. g3 {[%emt 0:00:01]} Be7 {[%emt 0:00:01]} 5. Bg2 {[%emt 0:00:01]} O-O {[%emt 0:00:03]} 6. O-O {[%emt 0:00:02]} dxc4 {[%emt 0:00:02]} 7. Qc2 {[%emt 0:00:01]} a6 {[%emt 0:00:02]} 8. a4 {[%emt 0:00:01]} Bd7 {[%emt 0:00:01]} 9. Qxc4 {[%emt 0:00:03]} Bc6 {[%emt 0:00:07]} 10. Bg5 {[%emt 0:00:06]} Nbd7 {[%emt 0:00:25]} 11. Nc3 {[%emt 0:00:04]} h6 {[%emt 0:00:08]} 12. Bxf6 {[%emt 0:00:23]} Nxf6 {[%emt 0:00:03]} 13. Rfe1 {[%emt 0:00:09]} Ne4 {[%emt 0:00:29]} 14. Ne5 {[%emt 0:00:21]} Bd5 {[%emt 0:00:08]} 15. Nxd5 {[%emt 0:00:06]} exd5 {[%emt 0:00:02]} 16. Qb3 {[%emt 0:00:09]} Rb8 {[%emt 0:00:19]} 17. e3 {[%emt 0:00:07]} Bf6 {[%emt 0:00:07]} 18. Nd3 {[%emt 0:00:05]} Re8 {[%emt 0:00:11]} 19. Qc2 {[%emt 0:00:09]} c6 {[%emt 0:00:14]} 20. b4 {[%emt 0:00:02]} Nd6 {[%emt 0:00:02]} 21. Nc5 {[%emt 0:00:17]} h5 {[%emt 0:00:09]} 22. Rad1 {[%emt 0:00:13]} h4 {[%emt 0:00:10]} 23. Bh3 {[%emt 0:00:02]} Re7 {[%emt 0:00:09]} 24. Bg2 {[%emt 0:00:13]} Qc8 {[%emt 0:00:09]} 25. e4 {[%emt 0:00:11]} dxe4 {[%emt 0:00:05]} 26. Nxe4 {[%emt 0:00:01]} Nxe4 {[%emt 0:00:03]} 27. Rxe4 {[%emt 0:00:02]} Qf5 {[%emt 0:00:09]} 28. Qe2 {[%emt 0:00:18]} Rbe8 {[%emt 0:00:12]} 29. Rxe7 {[%emt 0:00:09]} Rxe7 {[%emt 0:00:01]} 30. Qf3 {[%emt 0:00:01]} Qxf3 {[%emt 0:00:05]} 31. Bxf3 {[%emt 0:00:01]} Rd7 {[%emt 0:00:05]} 32. d5 {[%emt 0:00:01]} Be7 {[%emt 0:00:15]} 33. dxc6 {[%emt 0:00:11]} Rxd1+ {[%emt 0:00:01]} 34. Bxd1 {[%emt 0:00:02]} bxc6 {[%emt 0:00:02]} 35. Bf3 {[%emt 0:00:02]} Bxb4 {[%emt 0:00:03]} 36. Bxc6 {[%emt 0:00:01]} hxg3 37. hxg3 {[%emt 0:00:01]} a5 {[%emt 0:00:03]} 1/2-1/2

[Event "EWIBCC 2019"]
[Site "Monte-Carlo"]
[Date "2019.11.29"]
[Round "10.14"]
[White "Reizniece-Ozola, Dana"]
[Black "Rogule, Laura"]
[Result "1-0"]
[ECO "A22"]
[WhiteElo "2305"]
[BlackElo "2293"]
[Annotator "NA"]
[PlyCount "71"]
[EventDate "2019.11.29"]
[EventType "swiss"]
[EventCountry "MNC"]
[SourceTitle "playchess.com"]
[Source "ChessBase"]
[SourceQuality "1"]
[TimeControl "180+2"]

1. c4 {[%emt 0:00:00]} e5 {[%emt 0:00:00]} 2. Nc3 {[%emt 0:00:00]} Nf6 {[%emt 0:00:00]} 3. g3 {[%emt 0:00:00]} d5 {[%emt 0:00:01]} 4. cxd5 {[%emt 0:00:01]} Nxd5 {[%emt 0:00:01]} 5. Bg2 {[%emt 0:00:01]} Nb6 {[%emt 0:00:01]} 6. e3 {[%emt 0:00:00]} Nc6 {[%emt 0:00:09]} 7. Nge2 {[%emt 0:00:01]} h5 {[%emt 0:00:09]} 8. h4 {[%emt 0:00:07]} Be7 {[%emt 0:00:05]} 9. d4 {[%emt 0:00:03]} exd4 {[%emt 0:00:07]} 10. exd4 {[%emt 0:00:02]} Bg4 {[%emt 0:00:02]} 11. f3 {[%emt 0:00:08]} Bf5 {[%emt 0:00:06]} 12. Bf4 {[%emt 0:00:22]} Nb4 {[%emt 0:00:06]} 13. Ne4 {[%emt 0:00:01]} N6d5 {[%emt 0:00:17]} 14. O-O {[%emt 0:00:12]} Nc6 {[%emt 0:00:15]} 15. Bd2 {[%emt 0:00:17]} O-O {[%emt 0:00:31]} 16. Rc1 {[%emt 0:00:37]} Ncb4 {[%emt 0:00:21]} 17. Qb3 {[%emt 0:00:20]} a5 {[%emt 0:00:05]} 18. a3 {[%emt 0:00:04]} a4 {[%emt 0:00:04]} 19. Qc4 {[%emt 0:00:04]} Nc6 {[%emt 0:00:11]} 20. Rfd1 {[%emt 0:00:08]} Re8 {[%emt 0:00:30]} 21. Nf4 {[%emt 0:00:30]} Nxf4 {[%emt 0:00:09]} 22. Bxf4 {[%emt 0:00:02]} Bxe4 {[%emt 0:00:19]} 23. fxe4 {[%emt 0:00:02]} Bf6 {[%emt 0:00:03]} 24. e5 {[%emt 0:00:06]} Be7 {[%emt 0:00:04]} 25. d5 {[%emt 0:00:03]} Na5 {[%emt 0:00:01]} 26. Qxc7 {[%emt 0:00:02]} Nb3 {[%emt 0:00:01]} 27. Qxd8 {[%emt 0:00:03]} Rexd8 {[%emt 0:00:04]} 28. Rc7 {[%emt 0:00:04]} Bc5+ {[%emt 0:00:03]} 29. Kh2 {[%emt 0:00:02]} b6 {[%emt 0:00:13]} 30. d6 {[%emt 0:00:02]} Rac8 {[%emt 0:00:00]} 31. Rxc8 {[%emt 0:00:01]} Rxc8 {[%emt 0:00:00]} 32. d7 {[%emt 0:00:39]} Rd8 33. e6 {[%emt 0:00:00]} Nd4 {[%emt 0:00:00]} 34. Bc7 {[%emt 0:00:00]} Nxe6 {[%emt 0:00:00]} 35. Bxd8 {[%emt 0:00:00]} Nxd8 {[%emt 0:00:01]} 36. Re1 {[%emt 0:00:00]} 1-0

[Event "EWIBCC 2019"]
[Site "Monte-Carlo"]
[Date "2019.11.29"]
[Round "10.15"]
[White "Salimova, Nurgyul"]
[Black "Benmesbah, Natacha"]
[Result "0-1"]
[ECO "D02"]
[WhiteElo "2370"]
[BlackElo "2265"]
[Annotator "NA"]
[PlyCount "106"]
[EventDate "2019.11.29"]
[EventType "swiss"]
[EventCountry "MNC"]
[SourceTitle "playchess.com"]
[Source "ChessBase"]
[SourceQuality "1"]
[TimeControl "180+2"]

1. b3 {[%emt 0:00:00]} d5 {[%emt 0:00:00]} 2. Bb2 {[%emt 0:00:00]} c5 {[%emt 0:00:00]} 3. Nf3 {[%emt 0:00:04]} Nc6 {[%emt 0:00:01]} 4. g3 {[%emt 0:00:05]} Nf6 {[%emt 0:00:01]} 5. Bg2 {[%emt 0:00:00]} e6 {[%emt 0:00:06]} 6. O-O {[%emt 0:00:03]} Be7 {[%emt 0:00:01]} 7. d4 {[%emt 0:00:05]} O-O {[%emt 0:03:05]} 8. Nbd2 {[%emt 0:00:07]} Ne4 {[%emt 0:00:00]} 9. dxc5 {[%emt 0:00:44]} Bxc5 {[%emt 0:00:00]} 10. c4 {[%emt 0:00:09]} Nxd2 {[%emt 0:00:00]} 11. Nxd2 {[%emt 0:00:03]} d4 {[%emt 0:00:00]} 12. a3 {[%emt 0:00:10]} a5 {[%emt 0:00:00]} 13. Qc2 {[%emt 0:00:02]} e5 {[%emt 0:00:00]} 14. Rad1 {[%emt 0:00:30]} Qe7 {[%emt 0:00:00]} 15. Qc1 {[%emt 0:00:02]} f5 {[%emt 0:00:00]} 16. Nf3 {[%emt 0:00:20]} Kh8 {[%emt 0:00:00]} 17. Rfe1 {[%emt 0:00:10]} Be6 {[%emt 0:00:00]} 18. Kh1 {[%emt 0:00:21]} Rad8 {[%emt 0:00:00]} 19. e3 {[%emt 0:00:12]} dxe3 {[%emt 0:00:00]} 20. fxe3 {[%emt 0:00:03]} Bg8 {[%emt 0:00:00]} 21. Nh4 {[%emt 0:00:15]} Rxd1 {[%emt 0:00:00]} 22. Rxd1 {[%emt 0:00:01]} Qg5 {[%emt 0:00:03]} 23. Nf3 {[%emt 0:00:06]} Qe7 {[%emt 0:00:07]} 24. Qc3 {[%emt 0:00:04]} Re8 {[%emt 0:00:05]} 25. Nh4 {[%emt 0:00:06]} Rf8 {[%emt 0:00:04]} 26. Bxc6 {[%emt 0:00:04]} bxc6 {[%emt 0:00:01]} 27. Qxe5 {[%emt 0:00:01]} Qxe5 28. Bxe5 {[%emt 0:00:01]} Bxa3 {[%emt 0:00:01]} 29. Rd7 {[%emt 0:00:01]} Rf7 {[%emt 0:00:12]} 30. Rxf7 {[%emt 0:00:03]} Bxf7 {[%emt 0:00:01]} 31. Nxf5 {[%emt 0:00:02]} Bf8 {[%emt 0:00:00]} 32. Bd6 {[%emt 0:00:02]} Kg8 {[%emt 0:00:01]} 33. Bxf8 {[%emt 0:00:02]} Kxf8 {[%emt 0:00:01]} 34. Nd4 {[%emt 0:00:02]} c5 {[%emt 0:00:02]} 35. Nb5 {[%emt 0:00:03]} Bg6 {[%emt 0:00:01]} 36. Nd6 {[%emt 0:00:02]} Bc2 {[%emt 0:00:02]} 37. Kg1 {[%emt 0:00:04]} Bxb3 {[%emt 0:00:01]} 38. Nb7 {[%emt 0:00:01]} a4 {[%emt 0:00:02]} 39. Nxc5 {[%emt 0:00:01]} Bc2 {[%emt 0:00:01]} 40. Na6 {[%emt 0:00:03]} a3 {[%emt 0:00:01]} 41. Nb4 {[%emt 0:00:01]} Bb3 {[%emt 0:00:01]} 42. c5 {[%emt 0:00:03]} a2 {[%emt 0:00:01]} 43. Nxa2 {[%emt 0:00:01]} Bxa2 {[%emt 0:00:00]} 44. Kf2 {[%emt 0:00:01]} Bd5 {[%emt 0:00:01]} 45. Ke2 {[%emt 0:00:01]} Be4 {[%emt 0:00:01]} 46. Kd2 {[%emt 0:00:01]} Ke7 {[%emt 0:00:00]} 47. Kc3 {[%emt 0:00:01]} Ke6 {[%emt 0:00:01]} 48. Kd4 {[%emt 0:00:00]} Bc6 {[%emt 0:00:01]} 49. e4 {[%emt 0:00:01]} g5 {[%emt 0:00:02]} 50. g4 {[%emt 0:00:01]} Bb7 {[%emt 0:00:02]} 51. h3 {[%emt 0:00:04]} Bc6 {[%emt 0:00:01]} 52. Kd3 {[%emt 0:00:05]} Ke5 {[%emt 0:00:00]} 53. Ke3 {[%emt 0:00:01]} Bxe4 {[%emt 0:00:35] Kd4+} 0-1

[Event "EWIBCC 2019"]
[Site "Monte-Carlo"]
[Date "2019.11.29"]
[Round "10.17"]
[White "Unuk, Laura"]
[Black "Muetsch, Annmarie"]
[Result "0-1"]
[ECO "E63"]
[WhiteElo "2298"]
[BlackElo "2240"]
[Annotator "NA"]
[PlyCount "122"]
[EventDate "2019.11.29"]
[EventType "swiss"]
[EventCountry "MNC"]
[SourceTitle "playchess.com"]
[Source "ChessBase"]
[SourceQuality "1"]
[TimeControl "180+2"]

1. d4 {[%emt 0:00:00]} Nf6 {[%emt 0:00:00]} 2. c4 {[%emt 0:00:00]} g6 {[%emt 0:00:01]} 3. Nf3 {[%emt 0:00:02]} Bg7 {[%emt 0:00:01]} 4. g3 {[%emt 0:00:01]} O-O {[%emt 0:00:02]} 5. Bg2 {[%emt 0:00:01]} d6 {[%emt 0:00:04]} 6. O-O {[%emt 0:00:03]} Nc6 {[%emt 0:00:01]} 7. Nc3 {[%emt 0:00:02]} a6 {[%emt 0:00:02]} 8. b3 {[%emt 0:00:01]} Rb8 {[%emt 0:00:04]} 9. Bb2 {[%emt 0:00:02]} Bd7 {[%emt 0:00:03]} 10. Nd5 {[%emt 0:00:13]} e6 {[%emt 0:00:16]} 11. Nxf6+ {[%emt 0:00:03]} Bxf6 {[%emt 0:00:03]} 12. e4 {[%emt 0:00:02]} e5 {[%emt 0:00:13]} 13. d5 {[%emt 0:00:11]} Ne7 {[%emt 0:00:03]} 14. Ne1 {[%emt 0:00:02]} Bg7 {[%emt 0:00:05]} 15. f4 {[%emt 0:00:04]} f5 {[%emt 0:00:38]} 16. fxe5 {[%emt 0:00:06]} dxe5 {[%emt 0:00:09]} 17. Nd3 {[%emt 0:00:05]} fxe4 {[%emt 0:00:08]} 18. Bxe4 {[%emt 0:00:02]} Nf5 {[%emt 0:00:15]} 19. Qe2 {[%emt 0:00:52]} Nd4 {[%emt 0:00:11]} 20. Qg2 {[%emt 0:00:02]} Qg5 {[%emt 0:00:19]} 21. Rxf8+ {[%emt 0:00:15]} Rxf8 {[%emt 0:00:02]} 22. Re1 {[%emt 0:00:02]} Qh5 {[%emt 0:00:22]} 23. h4 {[%emt 0:00:24]} Bg4 {[%emt 0:00:04]} 24. Bxd4 {[%emt 0:00:22]} exd4 {[%emt 0:00:01]} 25. d6 {[%emt 0:00:01]} c6 {[%emt 0:00:13]} 26. c5 {[%emt 0:00:04]} Bh6 {[%emt 0:00:06]} 27. b4 {[%emt 0:00:09]} Be3+ {[%emt 0:00:02]} 28. Kh2 {[%emt 0:00:01]} Be6 {[%emt 0:00:05]} 29. Rf1 {[%emt 0:00:07]} Rxf1 {[%emt 0:00:08]} 30. Qxf1 {[%emt 0:00:01]} Qg4 {[%emt 0:00:10]} 31. Ne5 {[%emt 0:00:06]} Qxe4 {[%emt 0:00:03]} 32. d7 {[%emt 0:00:02]} Qd5 {[%emt 0:00:04]} 33. Qf6 {[%emt 0:00:06]} Bxd7 {[%emt 0:00:04]} 34. h5 {[%emt 0:00:11]} Qxa2+ {[%emt 0:00:01]} 35. Kh1 {[%emt 0:00:04]} Qb1+ {[%emt 0:00:01]} 36. Kg2 {[%emt 0:00:00]} Qc2+ {[%emt 0:00:01]} 37. Kf3 {[%emt 0:00:01]} Qf5+ {[%emt 0:00:02]} 38. Qxf5 {[%emt 0:00:02]} Bxf5 {[%emt 0:00:01]} 39. hxg6 {[%emt 0:00:01]} hxg6 {[%emt 0:00:01]} 40. g4 {[%emt 0:00:01]} Bb1 {[%emt 0:00:03]} 41. Nc4 {[%emt 0:00:08]} Kg7 {[%emt 0:00:01]} 42. Nd6 {[%emt 0:00:01]} Kf6 {[%emt 0:00:03]} 43. Nxb7 {[%emt 0:00:01]} Bd2 {[%emt 0:00:02]} 44. Nd8 {[%emt 0:00:06]} Ba2 {[%emt 0:00:01]} 45. Nxc6 {[%emt 0:00:02]} Bd5+ {[%emt 0:00:02]} 46. Ke2 {[%emt 0:00:01]} Bxc6 {[%emt 0:00:01]} 47. Kxd2 {[%emt 0:00:01]} Ke5 {[%emt 0:00:01]} 48. Kd3 {[%emt 0:00:02]} Bb5+ {[%emt 0:00:00]} 49. Kd2 {[%emt 0:00:00]} Kd5 {[%emt 0:00:01]} 50. g5 {[%emt 0:00:01]} Kc4 {[%emt 0:00:01]} 51. c6 {[%emt 0:00:02]} Bxc6 {[%emt 0:00:01]} 52. Kc2 {[%emt 0:00:01]} Kxb4 {[%emt 0:00:02]} 53. Kd3 {[%emt 0:00:00]} Kc5 {[%emt 0:00:00]} 54. Kd2 {[%emt 0:00:01]} Kc4 {[%emt 0:00:01]} 55. Kc2 {[%emt 0:00:01]} Be4+ {[%emt 0:00:02]} 56. Kd2 {[%emt 0:00:00]} d3 {[%emt 0:00:01]} 57. Ke3 {[%emt 0:00:01]} Bf5 {[%emt 0:00:00]} 58. Kd2 {[%emt 0:00:01]} Kd4 {[%emt 0:00:01]} 59. Kd1 {[%emt 0:00:00]} Kc3 {[%emt 0:00:00]} 60. Kc1 {[%emt 0:00:01]} Bg4 {[%emt 0:00:01]} 61. Kb1 {[%emt 0:00:00]} d2 {[%emt 0:00:01]} 0-1

[Event "EWIBCC 2019"]
[Site "Monte-Carlo"]
[Date "2019.11.29"]
[Round "10.19"]
[White "Arakhamia-Grant, Ketevan"]
[Black "Berzina, Ilze"]
[Result "0-1"]
[ECO "B12"]
[WhiteElo "2376"]
[BlackElo "2211"]
[Annotator "NA"]
[PlyCount "144"]
[EventDate "2019.11.29"]
[EventType "swiss"]
[EventCountry "MNC"]
[SourceTitle "playchess.com"]
[Source "ChessBase"]
[SourceQuality "1"]
[TimeControl "180+2"]

1. e4 {[%emt 0:00:00]} c6 {[%emt 0:00:00]} 2. d4 {[%emt 0:00:00]} d5 {[%emt 0:00:00]} 3. e5 {[%emt 0:00:01]} c5 {[%emt 0:00:02]} 4. dxc5 {[%emt 0:00:02]} Nc6 {[%emt 0:00:03]} 5. a3 {[%emt 0:00:04]} Nxe5 {[%emt 0:00:07]} 6. b4 {[%emt 0:00:02]} Nf6 {[%emt 0:00:05]} 7. Bb2 {[%emt 0:00:02]} Nc6 {[%emt 0:00:08]} 8. Nf3 {[%emt 0:00:02]} Bg4 {[%emt 0:00:06]} 9. h3 {[%emt 0:00:28]} Bh5 {[%emt 0:00:26]} 10. Be2 {[%emt 0:00:15]} e6 {[%emt 0:00:04]} 11. Nbd2 {[%emt 0:00:38]} Be7 {[%emt 0:00:04]} 12. Ne5 {[%emt 0:00:17]} Bxe2 {[%emt 0:00:08]} 13. Qxe2 {[%emt 0:00:01]} Nxe5 {[%emt 0:00:05]} 14. Qxe5 {[%emt 0:00:03]} O-O {[%emt 0:00:04]} 15. g4 {[%emt 0:00:07]} Ne8 {[%emt 0:00:02]} 16. Qe2 {[%emt 0:00:48]} Bf6 {[%emt 0:00:02]} 17. Be5 {[%emt 0:00:03]} Bxe5 {[%emt 0:00:09]} 18. Qxe5 {[%emt 0:00:01]} a5 {[%emt 0:00:03]} 19. O-O {[%emt 0:00:09]} Nf6 {[%emt 0:00:09]} 20. f4 {[%emt 0:00:04]} Nd7 {[%emt 0:00:18]} 21. Qd4 {[%emt 0:00:02]} Nb8 {[%emt 0:00:06]} 22. b5 {[%emt 0:00:04]} Nd7 {[%emt 0:00:07]} 23. a4 {[%emt 0:00:02]} Rc8 {[%emt 0:00:04]} 24. Nb3 {[%emt 0:00:01]} Qc7 {[%emt 0:00:04]} 25. b6 {[%emt 0:00:09]} Qc6 {[%emt 0:00:04]} 26. Nxa5 {[%emt 0:00:27]} Qxc5 {[%emt 0:00:03]} 27. Qxc5 {[%emt 0:00:00]} Nxc5 {[%emt 0:00:06]} 28. Rfc1 {[%emt 0:00:00]} Ra8 {[%emt 0:00:02]} 29. Nb3 {[%emt 0:00:00]} Nxa4 {[%emt 0:00:03]} 30. c4 {[%emt 0:00:00]} dxc4 {[%emt 0:00:06]} 31. Rxc4 {[%emt 0:00:00]} Nxb6 {[%emt 0:00:01]} 32. Rxa8 {[%emt 0:00:05]} Rxa8 {[%emt 0:00:08]} 33. Rb4 {[%emt 0:00:02]} Nd5 {[%emt 0:00:04]} 34. Rxb7 {[%emt 0:00:02]} Nxf4 {[%emt 0:00:01]} 35. Kh2 {[%emt 0:00:01]} Ra2+ {[%emt 0:00:15]} 36. Kg3 {[%emt 0:00:01]} g5 {[%emt 0:00:07]} 37. h4 {[%emt 0:00:03]} h6 {[%emt 0:00:02]} 38. h5 {[%emt 0:00:04]} Kg7 {[%emt 0:00:04]} 39. Nc5 {[%emt 0:00:01]} Ra3+ {[%emt 0:00:07]} 40. Kf2 {[%emt 0:00:02]} Nd3+ {[%emt 0:00:02]} 41. Nxd3 {[%emt 0:00:02]} Rxd3 {[%emt 0:00:01]} 42. Ra7 {[%emt 0:00:03]} Kf6 {[%emt 0:00:05]} 43. Rb7 {[%emt 0:00:01]} Ra3 {[%emt 0:00:06]} 44. Rc7 {[%emt 0:00:02]} Ra6 {[%emt 0:00:08]} 45. Kf3 {[%emt 0:00:02]} Ra4 {[%emt 0:00:01]} 46. Rb7 {[%emt 0:00:01]} Rf4+ {[%emt 0:00:02]} 47. Kg3 {[%emt 0:00:01]} Ke5 {[%emt 0:00:01]} 48. Rb5+ {[%emt 0:00:02]} Kd6 {[%emt 0:00:04]} 49. Ra5 {[%emt 0:00:04]} Rf6 {[%emt 0:00:09]} 50. Rb5 {[%emt 0:00:04]} e5 {[%emt 0:00:07]} 51. Rb6+ {[%emt 0:00:03]} Ke7 {[%emt 0:00:01]} 52. Rb7+ {[%emt 0:00:01]} Kf8 {[%emt 0:00:05]} 53. Ra7 {[%emt 0:00:03]} Kg7 {[%emt 0:00:01]} 54. Re7 {[%emt 0:00:02]} Re6 {[%emt 0:00:02]} 55. Rxe6 {[%emt 0:00:03]} fxe6 {[%emt 0:00:16]} 56. Kf3 Kf6 {[%emt 0:00:00]} 57. Ke4 {[%emt 0:00:01]} Ke7 {[%emt 0:00:00]} 58. Kxe5 {[%emt 0:00:02]} Kf7 {[%emt 0:00:00]} 59. Kd4 {[%emt 0:00:03]} Kf6 {[%emt 0:00:02]} 60. Ke4 {[%emt 0:00:00]} Ke7 {[%emt 0:00:02]} 61. Ke5 {[%emt 0:00:03]} Kd7 {[%emt 0:00:03]} 62. Kd4 {[%emt 0:00:05]} Kd6 {[%emt 0:00:01]} 63. Ke4 {[%emt 0:00:01]} Ke7 {[%emt 0:00:02]} 64. Ke5 {[%emt 0:00:01]} Kf7 {[%emt 0:00:01]} 65. Kd4 {[%emt 0:00:02]} Kf6 {[%emt 0:00:01]} 66. Ke4 {[%emt 0:00:01]} Kf7 {[%emt 0:00:02]} 67. Ke5 {[%emt 0:00:01]} Ke7 {[%emt 0:00:01]} 68. Ke4 {[%emt 0:00:02]} Kd6 {[%emt 0:00:02]} 69. Kd4 {[%emt 0:00:01]} e5+ {[%emt 0:00:01]} 70. Ke4 {[%emt 0:00:03]} Ke6 {[%emt 0:00:01]} 71. Ke3 {[%emt 0:00:04]} Kd5 {[%emt 0:00:01]} 72. Kd3 {[%emt 0:00:01]} e4+ {[%emt 0:00:14] Kd4+ Ke5+} 0-1

[Event "EWIBCC 2019"]
[Site "Monte-Carlo"]
[Date "2019.11.29"]
[Round "10.20"]
[White "Daulyte-Cornette, Deimante"]
[Black "Paasikangas-Tella, Johanna"]
[Result "1-0"]
[ECO "B23"]
[WhiteElo "2405"]
[BlackElo "2177"]
[Annotator "NA"]
[PlyCount "37"]
[EventDate "2019.11.29"]
[EventType "swiss"]
[EventCountry "MNC"]
[SourceTitle "playchess.com"]
[Source "ChessBase"]
[SourceQuality "1"]
[TimeControl "180+2"]

1. e4 {[%emt 0:00:00]} c5 {[%emt 0:00:00]} 2. Nc3 {[%emt 0:00:01]} d6 {[%emt 0:00:01]} 3. f4 {[%emt 0:00:02]} g6 {[%emt 0:00:02]} 4. Nf3 {[%emt 0:00:02]} Bg7 {[%emt 0:00:01]} 5. Bb5+ {[%emt 0:00:02]} Nd7 {[%emt 0:00:01]} 6. O-O {[%emt 0:00:14]} a6 {[%emt 0:00:01]} 7. Bc4 {[%emt 0:00:03]} e6 {[%emt 0:00:03]} 8. a4 {[%emt 0:00:07]} b6 {[%emt 0:00:01]} 9. f5 {[%emt 0:00:11]} Ne5 {[%emt 0:00:10]} 10. Nxe5 {[%emt 0:00:07]} dxe5 {[%emt 0:00:01]} 11. fxe6 {[%emt 0:00:16]} Qd4+ {[%emt 0:00:07]} 12. Kh1 {[%emt 0:00:01]} Qxc4 {[%emt 0:00:11]} 13. exf7+ {[%emt 0:00:10]} Kd8 {[%emt 0:00:24]} 14. f8=Q+ {[%emt 0:00:27]} Bxf8 {[%emt 0:00:02]} 15. Rxf8+ {[%emt 0:00:02]} Ke7 {[%emt 0:00:01]} 16. d3 {[%emt 0:00:35]} Qd4 {[%emt 0:00:11]} 17. Qf1 {[%emt 0:00:19]} Kd6 {[%emt 0:00:56]} 18. Nd5 {[%emt 0:00:19]} c4 {[%emt 0:00:13]} 19. Be3 {[%emt 0:00:40] Kxd5} 1-0

[Event "EWIBCC 2019"]
[Site "Monte-Carlo"]
[Date "2019.11.29"]
[Round "11.1"]
[White "Kosteniuk, Alexandra"]
[Black "Gunina, Valentina"]
[Result "1-0"]
[ECO "B10"]
[WhiteElo "2483"]
[BlackElo "2509"]
[Annotator "ChessBase"]
[PlyCount "105"]
[EventDate "2019.11.29"]
[EventType "swiss"]
[EventCountry "MNC"]
[SourceTitle "playchess.com"]
[Source "ChessBase"]
[SourceQuality "1"]
[TimeControl "180+2"]

1. e4 {[%emt 0:00:00]} c6 {[%emt 0:00:00]} 2. c4 {[%emt 0:00:00]} d5 {[%emt 0:00:00]} 3. cxd5 {[%emt 0:00:01]} cxd5 {[%emt 0:00:00]} 4. exd5 {[%emt 0:00:01]} Nf6 {[%emt 0:00:01]} 5. Nc3 {[%emt 0:00:01]} Nxd5 {[%emt 0:00:01]} 6. Nf3 {[%emt 0:00:01]} Nc6 {[%emt 0:00:01]} 7. Bb5 {[%emt 0:00:01]} g6 {[%emt 0:00:02]} 8. Qa4 {[%emt 0:00:02]} Nb6 {[%emt 0:00:01]} 9. Qh4 {[%emt 0:00:02]} Bg7 {[%emt 0:00:04]} 10. O-O {[%emt 0:00:06]} O-O {[%emt 0:00:04]} 11. Bxc6 {[%emt 0:00:01]} bxc6 {[%emt 0:00:01]} 12. d4 {[%emt 0:00:01]} f6 {[%emt 0:00:21]} 13. Qe4 {[%emt 0:00:04]} Qd7 {[%emt 0:00:04]} 14. Re1 {[%emt 0:00:04]} Re8 {[%emt 0:00:14]} 15. b3 {[%emt 0:00:01]} Bb7 {[%emt 0:00:03]} 16. Qe2 {[%emt 0:00:08]} a5 {[%emt 0:00:56]} 17. Ne4 {[%emt 0:00:04]} Qd5 {[%emt 0:00:35]} 18. Nc5 {[%emt 0:00:03]} Bc8 {[%emt 0:00:00]} 19. Ne6 {[%emt 0:00:23]} Bxe6 20. Qxe6+ {[%emt 0:00:01]} Qxe6 {[%emt 0:00:03]} 21. Rxe6 {[%emt 0:00:01]} Rac8 {[%emt 0:00:03]} 22. Ba3 {[%emt 0:00:01]} Kf7 {[%emt 0:00:02]} 23. Rae1 {[%emt 0:00:02]} Nd5 {[%emt 0:00:01]} 24. Bc5 {[%emt 0:00:01]} Bf8 {[%emt 0:00:05]} 25. g3 {[%emt 0:00:02]} Nc3 {[%emt 0:00:08]} 26. a4 {[%emt 0:00:18]} Nd5 {[%emt 0:00:01]} 27. Nd2 {[%emt 0:00:03]} Rc7 {[%emt 0:00:16]} 28. Nc4 {[%emt 0:00:02]} Ra8 {[%emt 0:00:02]} 29. h4 {[%emt 0:00:41]} Ra6 {[%emt 0:00:02]} 30. Kg2 {[%emt 0:00:08]} Rb7 {[%emt 0:00:01]} 31. Nd2 {[%emt 0:00:01]} Nb4 {[%emt 0:00:10]} 32. Bxb4 {[%emt 0:00:28]} Rxb4 {[%emt 0:00:02]} 33. Nf3 {[%emt 0:00:33]} Rxb3 {[%emt 0:00:05]} 34. d5 {[%emt 0:00:01]} Rbb6 {[%emt 0:00:05]} 35. dxc6 {[%emt 0:00:09]} Rxc6 {[%emt 0:00:01]} 36. R6e4 {[%emt 0:00:06]} Rab6 {[%emt 0:00:06]} 37. Nd4 {[%emt 0:00:03]} Rd6 {[%emt 0:00:07]} 38. Nb5 {[%emt 0:00:01]} Rd2 {[%emt 0:00:03]} 39. Rc4 {[%emt 0:00:02]} Rb7 {[%emt 0:00:03]} 40. h5 {[%emt 0:00:02]} Rbd7 {[%emt 0:00:02]} 41. hxg6+ {[%emt 0:00:01]} hxg6 {[%emt 0:00:02]} 42. Rh1 {[%emt 0:00:02]} Rb2 {[%emt 0:00:01]} 43. g4 {[%emt 0:00:19]} g5 {[%emt 0:00:02]} 44. Nd4 {[%emt 0:00:04]} Rb4 {[%emt 0:00:12]} 45. Rxb4 {[%emt 0:00:01]} axb4 {[%emt 0:00:01]} 46. Nc6 {[%emt 0:00:01]} b3 {[%emt 0:00:08]} 47. Rb1 {[%emt 0:00:01]} Rc7 {[%emt 0:00:01]} 48. Nd8+ {[%emt 0:00:06]} Ke8 {[%emt 0:00:04]} 49. Ne6 {[%emt 0:00:01]} Rb7 {[%emt 0:00:05]} 50. a5 {[%emt 0:00:03]} Bh6 {[%emt 0:00:01]} 51. a6 {[%emt 0:00:01]} Ra7 {[%emt 0:00:02]} 52. Rxb3 {[%emt 0:00:01]} Rxa6 {[%emt 0:00:00]} 53. Nc7+ {[%emt 0:00:01]} 1-0